bitfinex/quotes_BTCUSD_20260126
["timestamp","ask_amount","ask_price","bid_price","bid_amount"]
[1769387228816,0.17961345,86914.0,86903.0,0.0002792]
[1769387229072,0.17961345,86909.0,86903.0,0.0002792]
[1769387229478,0.17961345,86909.0,86895.0,0.0004]
[1769387229690,0.17961345,86909.0,86857.0,0.18281459]
[1769387229691,1.15920077,86882.0,86857.0,0.18281459]
[1769387229851,1.15920077,86881.0,86861.0,0.17666001]
[1769387230188,0.01150999,86881.0,86865.0,1.15688877]
[1769387230393,1.15920077,86877.0,86861.0,0.17666001]
[1769387230595,0.01151171,86868.0,86859.0,4.124e-05]
[1769387230869,0.01151171,86868.0,86860.0,0.17672]
[1769387231126,0.01151145,86870.0,86861.0,0.01660016]
[1769387231127,0.01151158,86869.0,86861.0,0.01660016]
[1769387231281,0.01151158,86869.0,86859.0,4.124e-05]
[1769387231282,0.01151211,86865.0,86859.0,4.124e-05]
[1769387231482,0.01151052,86877.0,86860.0,1.15688877]
[1769387231681,1.10991957,86871.0,86861.0,0.01606903]
[1769387231881,1.10991957,86871.0,86859.0,4.124e-05]
[1769387232080,0.17961345,86870.0,86859.0,4.124e-05]
[1769387233028,0.1911249,86870.0,86859.0,4.124e-05]
[1769387233232,1.10991957,86869.0,86859.0,4.124e-05]
[1769387233412,0.17961345,86868.0,86859.0,4.124e-05]
[1769387234406,0.01151079,86875.0,86860.0,1.15688877]
[1769387234592,0.01151079,86875.0,86861.0,0.01668684]
[1769387234788,1.10991957,86877.0,86861.0,0.01668684]
[1769387235030,1.10991957,86875.0,86861.0,0.01668684]
[1769387235363,0.01151238,86863.0,86859.0,4.124e-05]
[1769387235567,0.01151224,86864.0,86859.0,4.124e-05]
[1769387235914,0.01151211,86865.0,86859.0,4.124e-05]
[1769387236170,0.01151224,86864.0,86859.0,4.124e-05]
[1769387236329,0.01151238,86863.0,86859.0,4.124e-05]
[1769387236696,0.01151238,86863.0,86859.0,0.00046706]
[1769387236697,1.10255048,86862.0,86859.0,0.00046706]
[1769387236877,1.29298991,86862.0,86859.0,5.839e-05]
[1769387237266,1.2814774,86862.0,86859.0,5.839e-05]
[1769387237592,0.01151211,86865.0,86853.0,0.17193289]
[1769387237835,0.01151211,86865.0,86851.0,0.17676]
[1769387237836,0.01151224,86864.0,86851.0,0.17676]
[1769387238048,0.01151238,86863.0,86851.0,0.17676]
[1769387238392,0.01151251,86862.0,86851.0,0.17676]
[1769387238604,0.01151264,86861.0,86851.0,0.17676]
[1769387238802,0.01151251,86862.0,86851.0,0.17676]
[1769387239010,0.01151251,86862.0,86846.0,0.23432118]
[1769387239011,0.02151397,86851.0,86846.0,0.04604]
[1769387239216,0.01151516,86842.0,86828.0,0.04127313]
[1769387239414,0.01151503,86843.0,86831.0,0.17676]
[1769387239619,0.0115133,86856.0,86834.0,1.05811772]
[1769387239975,0.43734988,86887.0,86831.0,0.17676]
[1769387239976,0.01151238,86863.0,86842.0,1.05811772]
[1769387240149,0.01151264,86861.0,86846.0,1.05811772]
[1769387240348,0.00047066,86863.0,86849.0,0.18828118]
[1769387240590,0.00047066,86863.0,86852.0,1.05811772]
[1769387240819,0.00047066,86863.0,86853.0,1.2463989]
[1769387241223,0.00047066,86863.0,86854.0,0.18828118]
[1769387241444,0.00047066,86863.0,86855.0,1.2463989]
[1769387242838,0.00047066,86863.0,86855.0,0.18828118]
[1769387243491,1.08898626,86863.0,86852.0,0.01731177]
[1769387244083,1.10002824,86861.0,86847.0,0.1768]
[1769387244267,1.29046794,86859.0,86838.0,1.05811772]
[1769387244471,0.19043943,86853.0,86839.0,0.1768]
[1769387244724,1.27895503,86853.0,86839.0,0.1768]
[1769387245145,1.29046873,86853.0,86839.0,0.1768]
[1769387245427,0.01151423,86849.0,86836.0,0.1768]
[1769387245629,0.01151436,86848.0,86833.0,1.23491772]
[1769387245832,0.0115145,86847.0,86833.0,1.23491772]
[1769387246054,0.01151436,86848.0,86833.0,1.23491772]
[1769387246344,1.10002983,86849.0,86833.0,1.23491772]
[1769387246543,1.09103797,86846.0,86833.0,0.1768]
[1769387247208,1.09103797,86846.0,86829.0,1.23491772]
[1769387247209,0.01151476,86845.0,86829.0,1.23491772]
[1769387247418,1.27480297,86846.0,86829.0,1.4231989]
[1769387247627,1.27480297,86846.0,86830.0,0.18828118]
[1769387247797,0.20195419,86845.0,86831.0,0.01741773]
[1769387248101,0.23027439,86853.0,86830.0,0.01741773]
[1769387248102,0.01151529,86841.0,86830.0,0.01741773]
[1769387248343,1.08436354,86832.0,86819.0,0.17684]
[1769387248677,0.01151688,86829.0,86819.0,0.17684]
[1769387248867,0.01151649,86832.0,86819.0,0.17684]
[1769387248868,1.08436354,86830.0,86819.0,0.17684]
[1769387249064,1.09588029,86830.0,86819.0,0.17684]
[1769387249277,0.01151728,86826.0,86819.0,0.16524]
[1769387249486,1.08483391,86826.0,86816.0,0.00011216]
[1769387250355,0.00047037,86826.0,86816.0,0.00011216]
[1769387250802,0.00047037,86826.0,86816.0,0.01808302]
[1769387251487,0.00047037,86826.0,86816.0,0.00011216]
[1769387251726,0.01151795,86821.0,86816.0,0.00011216]
[1769387251928,1.27480297,86824.0,86816.0,0.00011216]
[1769387252127,1.28632052,86824.0,86816.0,0.00011216]
[1769387252328,1.27480297,86824.0,86816.0,0.00011216]
[1769387252503,1.28632052,86824.0,86816.0,0.00011216]
[1769387252872,1.27480297,86824.0,86816.0,5.608e-05]
[1769387253321,0.01198765,86826.0,86806.0,0.01695806]
[1769387253322,1.08420902,86823.0,86806.0,0.01695806]
[1769387253488,0.00047037,86826.0,86811.0,0.186212]
[1769387253690,0.00047037,86826.0,86810.0,0.01696278]
[1769387253933,1.08420902,86823.0,86808.0,0.01696827]
[1769387254149,1.08420902,86823.0,86803.0,0.01152033]
[1769387254150,1.08420902,86821.0,86802.0,0.18836047]
[1769387254352,1.08420902,86821.0,86803.0,0.01152033]
[1769387254576,1.08420902,86821.0,86804.0,0.0115202]
[1769387254732,1.08420902,86821.0,86803.0,0.17469273]
[1769387255109,1.09572697,86821.0,86803.0,0.17469273]
[1769387255486,1.13105625,86814.0,86802.0,0.17684]
[1769387255971,1.13105625,86811.0,86800.0,0.004]
[1769387256411,0.01151954,86809.0,86800.0,0.004]
[1769387256759,0.01151967,86808.0,86800.0,0.004]
[1769387257461,1.30988759,86806.0,86793.0,0.02745664]
[1769387257671,0.18279134,86801.0,86785.0,0.17469273]
[1769387258036,1.12709625,86800.0,86784.0,0.000468]
[1769387258202,0.011521,86798.0,86784.0,0.000468]
[1769387258403,0.01152113,86797.0,86784.0,0.000468]
[1769387258576,1.13861725,86798.0,86784.0,0.000468]
[1769387258771,1.12709625,86796.0,86784.0,0.000468]
[1769387259392,0.00047008,86796.0,86784.0,0.000468]
[1769387259811,0.00047008,86796.0,86786.0,0.17469273]
[1769387259989,0.00047008,86796.0,86786.0,0.18892108]
[1769387260193,0.00047008,86796.0,86786.0,0.01422835]
[1769387260413,0.00047008,86796.0,86784.0,0.000468]
[1769387261395,0.00047008,86796.0,86785.0,1.16500567]
[1769387261597,0.00047008,86796.0,86788.0,0.17469273]
[1769387261971,0.00047008,86796.0,86789.0,1.19195314]
[1769387262175,0.00047008,86796.0,86793.0,1.16500567]
[1769387262439,0.00047008,86796.0,86789.0,0.01152219]
[1769387262440,1.11853724,86810.0,86789.0,0.18621492]
[1769387262642,1.11922764,86809.0,86791.0,0.17469273]
[1769387262892,1.1077081,86809.0,86791.0,0.17469273]
[1769387263268,1.1077081,86809.0,86787.0,0.06913471]
[1769387263269,0.06203061,86792.0,86729.0,0.02439746]
[1769387263468,1.14873473,86786.0,86763.0,0.17469273]
[1769387263711,1.14873473,86787.0,86765.0,1.16500567]
[1769387263847,0.01152272,86785.0,86768.0,0.17469273]
[1769387264053,0.01152272,86785.0,86766.0,0.0160967]
[1769387264054,1.14873473,86784.0,86769.0,0.01725413]
[1769387264254,0.01166271,86792.0,86768.0,0.01725962]
[1769387264465,0.01166271,86792.0,86772.0,0.17469273]
[1769387264466,0.01152193,86791.0,86772.0,0.17469273]
[1769387264821,0.00014092,86792.0,86777.0,1.16500567]
[1769387265031,0.00014092,86792.0,86779.0,0.17469273]
[1769387265231,0.00014092,86792.0,86781.0,0.17469273]
[1769387265471,0.00014092,86792.0,86782.0,0.19197728]
[1769387266055,0.01152206,86790.0,86782.0,0.19197728]
[1769387266216,0.00014092,86792.0,86782.0,0.19197728]
[1769387266663,0.01166271,86792.0,86782.0,0.19197728]
[1769387266966,0.00014092,86792.0,86782.0,0.19197728]
[1769387267692,0.00014092,86792.0,86785.0,0.17469273]
[1769387267893,0.00014092,86792.0,86787.0,0.17469273]
[1769387268178,0.00014092,86792.0,86789.0,0.17469273]
[1769387268556,0.00014092,86792.0,86790.0,0.01735996]
[1769387268756,0.00014092,86792.0,86790.0,0.01689053]
[1769387268938,0.00014092,86792.0,86789.0,0.17469273]
[1769387269146,0.02152219,86789.0,86781.0,0.17469273]
[1769387269349,0.16793723,86795.0,86781.0,0.17469273]
[1769387269583,0.05760965,86791.0,86781.0,0.17516281]
[1769387269798,0.01152179,86792.0,86781.0,0.17516281]
[1769387269990,0.05761038,86790.0,86781.0,0.17516281]
[1769387270206,0.01152219,86789.0,86781.0,0.17516281]
[1769387270523,0.01152206,86790.0,86781.0,0.17516281]
[1769387270983,0.01152219,86789.0,86781.0,0.17516281]
[1769387271188,0.01152219,86789.0,86782.0,0.17696]
[1769387271337,0.01152246,86787.0,86782.0,0.17696]
[1769387271558,0.01152206,86790.0,86782.0,0.17696]
[1769387271781,0.01152179,86792.0,86782.0,0.17696]
[1769387272000,0.43376962,86810.0,86782.0,0.17696]
[1769387272001,0.0115202,86804.0,86784.0,1.16500567]
[1769387272211,0.0691222,86803.0,86793.0,0.93490176]
[1769387272459,0.01152073,86800.0,86792.0,0.17469273]
[1769387272661,0.01152047,86802.0,86792.0,0.17469273]
[1769387272862,0.011521,86798.0,86792.0,0.17469273]
[1769387273061,0.01152047,86802.0,86794.0,1.16500567]
[1769387273234,0.01152033,86803.0,86795.0,0.17469273]
[1769387273439,0.0115206,86801.0,86797.0,0.17469273]
[1769387273690,0.0115206,86801.0,86798.0,0.21146003]
[1769387273885,0.0115206,86801.0,86798.0,0.32849279]
[1769387274086,0.01152033,86803.0,86799.0,0.17696]
[1769387274526,0.01152047,86802.0,86799.0,0.17696]
[1769387275365,0.06912104,86805.0,86798.0,0.21317285]
[1769387275366,0.01152007,86805.0,86800.0,0.22304]
[1769387275575,0.01151954,86809.0,86800.0,0.22304]
[1769387275576,0.01151927,86811.0,86801.0,0.17469273]
[1769387275795,0.01151901,86813.0,86805.0,1.16500568]
[1769387275991,0.01151914,86812.0,86805.0,0.87652106]
[1769387276205,0.01151914,86812.0,86805.0,0.58824111]
[1769387276387,0.01151914,86812.0,86803.0,0.17469273]
[1769387276636,0.01151927,86811.0,86803.0,0.17469273]
[1769387276922,0.01151967,86808.0,86803.0,0.17469273]
[1769387277136,0.0115198,86807.0,86804.0,0.11703674]
[1769387277323,0.0115198,86807.0,86803.0,1.16500567]
[1769387277479,0.01151967,86808.0,86800.0,0.15652177]
[1769387277708,0.01151954,86809.0,86800.0,1.32152744]
[1769387278248,0.01151967,86808.0,86800.0,1.49622017]
[1769387278450,0.0115198,86807.0,86801.0,1.16500567]
[1769387278661,0.01151967,86808.0,86801.0,1.16500567]
[1769387278871,0.0115198,86807.0,86801.0,1.16500567]
[1769387279060,0.01151967,86808.0,86801.0,1.16500567]
[1769387279634,0.01151941,86810.0,86801.0,1.16500567]
[1769387280461,0.0115198,86807.0,86801.0,1.16500567]
[1769387280807,0.01151941,86810.0,86801.0,1.16500567]
[1769387280939,0.01151994,86806.0,86801.0,1.16500567]
[1769387281154,0.0115198,86807.0,86800.0,0.15652177]
[1769387281380,0.18279134,86814.0,86800.0,0.15652177]
[1769387281590,0.18279134,86819.0,86800.0,1.32152744]
[1769387281795,0.18279134,86817.0,86800.0,0.15652177]
[1769387281993,0.18279134,86817.0,86785.0,0.06913608]
[1769387281994,1.14873473,86799.0,86797.0,0.04608]
[1769387282194,0.01,86800.0,86798.0,0.17116]
[1769387282400,0.01152033,86803.0,86798.0,0.17116]
[1769387282599,0.01151967,86808.0,86799.0,1.35692017]
[1769387282827,0.02874144,86808.0,86799.0,1.30203017]
[1769387283069,0.01151967,86808.0,86799.0,1.30203017]
[1769387283293,0.19431008,86815.0,86799.0,1.30203017]
[1769387283486,0.01151954,86809.0,86799.0,1.30203017]
[1769387283686,0.01151927,86811.0,86799.0,1.30203017]
[1769387284227,0.05759445,86814.0,86799.0,1.30203017]
[1769387284636,0.01151914,86812.0,86799.0,1.30203017]
[1769387284841,0.06910751,86822.0,86799.0,0.01152087]
[1769387285101,0.01151795,86821.0,86805.0,0.24729425]
[1769387285260,0.01151848,86817.0,86807.0,0.24729425]
[1769387285456,0.01151808,86820.0,86808.0,0.22304]
[1769387285669,0.01151808,86820.0,86811.0,0.14201291]
[1769387285895,0.01151808,86820.0,86811.0,0.08415751]
[1769387286207,0.01151755,86824.0,86811.0,0.08415751]
[1769387286208,0.01151821,86819.0,86811.0,1.08691826]
[1769387286419,0.01151755,86824.0,86812.0,0.19595211]
[1769387286626,0.00014129,86824.0,86815.0,1.08691826]
[1769387286833,0.00014129,86824.0,86817.0,1.08691826]
[1769387287262,0.00014129,86824.0,86817.0,1.28287037]
[1769387287942,0.00014129,86824.0,86820.0,0.20588985]
[1769387288162,0.00014129,86824.0,86823.0,1.29280811]
[1769387288390,0.00014129,86824.0,86823.0,1.41210286]
[1769387288817,0.00014129,86824.0,86809.0,0.06911675]
[1769387288818,0.01151781,86822.0,86809.0,0.20595304]
[1769387289015,0.05759124,86819.0,86810.0,0.22304]
[1769387289228,0.01151834,86818.0,86809.0,1.2928713]
[1769387289395,0.00014129,86824.0,86810.0,0.22304]
[1769387289396,1.13962806,86817.0,86810.0,0.22304]
[1769387290040,0.25830164,86821.0,86810.0,0.22304]
[1769387290252,0.01151808,86820.0,86810.0,0.22304]
[1769387291274,0.24678369,86821.0,86810.0,0.22304]
[1769387291578,0.01151848,86817.0,86811.0,0.17692]
[1769387291708,0.01151808,86820.0,86811.0,0.17692]
[1769387291910,0.01151821,86819.0,86811.0,0.17692]
[1769387292365,0.01151808,86820.0,86811.0,0.17692]
[1769387293381,0.01151834,86818.0,86811.0,0.17692]
[1769387293557,0.01151808,86820.0,86811.0,0.17692]
[1769387293772,0.01151821,86819.0,86811.0,0.17692]
[1769387294331,0.01151808,86820.0,86811.0,0.17692]
[1769387294759,0.01722177,86823.0,86811.0,0.17692]
[1769387294908,0.01165884,86824.0,86812.0,0.0013637]
[1769387295287,0.00014129,86824.0,86812.0,0.0013637]
[1769387295495,0.00014129,86824.0,86815.0,1.08691826]
[1769387295706,0.24678369,86838.0,86818.0,0.23223921]
[1769387295898,0.24678369,86838.0,86820.0,1.38821396]
[1769387296107,0.24678369,86838.0,86820.0,1.38835525]
[1769387296108,1.34389325,86838.0,86820.0,1.38835525]
[1769387296546,0.01151635,86833.0,86820.0,1.38835525]
[1769387296740,0.01151649,86832.0,86820.0,1.38835525]
[1769387296940,0.01151635,86833.0,86820.0,1.38835525]
[1769387297363,0.01151702,86828.0,86820.0,0.00014129]
[1769387297567,0.02873865,86829.0,86820.0,0.00014129]
[1769387297834,0.2520058,86830.0,86820.0,0.00014129]
[1769387298039,1.34911536,86830.0,86820.0,0.00014129]
[1769387298427,1.09710956,86828.0,86820.0,0.00014129]
[1769387298658,0.01151728,86826.0,86820.0,0.00014129]
[1769387298865,0.26352322,86825.0,86821.0,0.223]
[1769387299074,0.01151755,86824.0,86821.0,0.223]
[1769387299279,0.01151755,86824.0,86821.0,0.09665066]
[1769387299696,1.09710956,86828.0,86821.0,0.09665066]
[1769387299848,1.34911536,86831.0,86821.0,0.09665066]
[1769387300468,0.2520058,86853.0,86823.0,1.15561318]
[1769387300708,0.0575812,86834.0,86821.0,0.09665066]
[1769387300919,0.43471935,86840.0,86820.0,0.00014129]
[1769387301117,0.43471935,86840.0,86801.0,0.0115206]
[1769387301118,1.34911536,86822.0,86821.0,0.0354]
[1769387301291,0.2520058,86821.0,86818.0,0.17692]
[1769387301492,1.34911536,86821.0,86818.0,0.17692]
[1769387302396,0.00014121,86822.0,86818.0,0.17692]
[1769387303432,0.00014121,86822.0,86818.0,1.33253318]
[1769387303654,0.00014121,86822.0,86820.0,1.15561318]
[1769387303858,0.00014121,86822.0,86820.0,1.41301879]
[1769387304076,0.00014121,86822.0,86818.0,0.17692]
[1769387304077,0.00014121,86822.0,86821.0,1.41301879]
[1769387305797,0.00014121,86822.0,86818.0,0.17692]
[1769387306715,0.00014121,86822.0,86814.0,0.25740561]
[1769387306889,0.00014121,86822.0,86819.0,0.17692]
[1769387307512,0.00014121,86822.0,86815.0,1.15561318]
[1769387307751,0.00014121,86822.0,86820.0,0.17692]
[1769387307955,0.00014121,86822.0,86821.0,0.00076671]
[1769387308581,0.00014121,86822.0,86821.0,1.15637989]
[1769387308788,0.00014121,86822.0,86821.0,1.15561318]
[1769387309421,0.00014121,86822.0,86820.0,0.17692]
[1769387311070,0.00014121,86822.0,86821.0,0.17692]
[1769387311279,0.00014121,86822.0,86821.0,0.16692]
[1769387314516,0.00014121,86822.0,86821.0,0.16681095]
[1769387315128,1.09710956,86827.0,86821.0,0.16681095]
[1769387315356,0.01151503,86843.0,86821.0,0.16681095]
[1769387315357,0.29260802,86839.0,86827.0,0.00985879]
[1769387315562,1.1079194,86836.0,86827.0,0.00985879]
[1769387315776,0.28109246,86828.0,86811.0,0.18843927]
[1769387315978,1.38901186,86827.0,86812.0,0.00151138]
[1769387317731,0.28109246,86827.0,86820.0,0.01151808]
[1769387317931,0.28109246,86827.0,86823.0,0.01151768]
[1769387318162,1.1079194,86830.0,86824.0,0.00162197]
[1769387318371,0.28109246,86832.0,86822.0,0.01151781]
[1769387318801,0.28109246,86832.0,86825.0,0.01151742]
[1769387319007,5.5e-05,86831.0,86825.0,0.01151742]
[1769387319855,0.9340065,86831.0,86827.0,0.01151715]
[1769387320065,0.0003758,86846.0,86833.0,1.42511719]
[1769387320268,0.0003758,86846.0,86797.0,0.58224465]
[1769387320269,0.04608,86861.0,86846.0,0.01151463]
[1769387320473,0.11513193,86860.0,86847.0,0.0115145]
[1769387320627,0.04608,86861.0,86847.0,0.0115145]
[1769387321242,0.04608,86861.0,86849.0,0.01151423]
[1769387321451,0.04622129,86861.0,86853.0,0.0115137]
[1769387321844,0.04622129,86861.0,86849.0,0.01150988]
[1769387322023,0.00014129,86861.0,86855.0,1.16161175]
[1769387322226,0.00014129,86861.0,86856.0,0.0115133]
[1769387322449,0.00014129,86861.0,86857.0,0.01151317]
[1769387322650,0.00014129,86861.0,86858.0,0.01151304]
[1769387323050,0.00014129,86861.0,86858.0,0.0690782]
[1769387323259,0.00014129,86861.0,86858.0,1.21917651]
[1769387323464,0.00014129,86861.0,86858.0,1.16161135]
[1769387323867,0.00014129,86861.0,86858.0,1.21917656]
[1769387324070,0.00014129,86861.0,86858.0,1.16161135]
[1769387324366,0.00014129,86861.0,86858.0,1.15009831]
[1769387324832,0.00014129,86861.0,86852.0,0.01151383]
[1769387325004,0.00014129,86861.0,86852.0,1.16161214]
[1769387325242,0.00014129,86861.0,86852.0,1.14983536]
[1769387325466,0.00014129,86861.0,86844.0,0.23029787]
[1769387325467,0.00014129,86861.0,86846.0,0.01151463]
[1769387325685,0.00014129,86861.0,86838.0,1.15009831]
[1769387325861,0.28109246,86860.0,86847.0,0.0115145]
[1769387326081,0.28109246,86860.0,86846.0,0.01151463]
[1769387326509,0.28109246,86860.0,86849.0,0.01151423]
[1769387326737,0.00014129,86861.0,86852.0,0.05756905]
[1769387326954,0.00014129,86861.0,86855.0,0.01151344]
[1769387327575,0.00014129,86861.0,86857.0,0.01151317]
[1769387328205,0.00014129,86861.0,86858.0,0.01151304]
[1769387328412,0.00014129,86861.0,86858.0,1.42511719]
[1769387328646,0.00014129,86861.0,86858.0,1.15009831]
[1769387329114,0.00014129,86861.0,86856.0,1.43663049]
[1769387329354,0.00014129,86861.0,86856.0,1.42511719]
[1769387329775,0.00014129,86861.0,86857.0,0.01151317]
[1769387329948,0.00014129,86861.0,86857.0,1.16161148]
[1769387330780,0.00014129,86861.0,86857.0,1.15009831]
[1769387330987,0.00014129,86861.0,86857.0,1.16161148]
[1769387331191,0.00014129,86861.0,86856.0,0.27501888]
[1769387331402,0.00014129,86861.0,86857.0,0.00115131]
[1769387331604,0.00014129,86861.0,86853.0,0.01266501]
[1769387331803,0.00014129,86861.0,86854.0,0.01151357]
[1769387332045,0.00014129,86861.0,86857.0,0.01151317]
[1769387332250,0.00014129,86861.0,86858.0,0.00115124]
[1769387332416,0.00014129,86861.0,86858.0,0.01266428]
[1769387332953,0.00014129,86861.0,86858.0,0.00115124]
[1769387333377,0.00014129,86861.0,86855.0,0.00115276]
[1769387333515,0.00014129,86861.0,86853.0,0.01267201]
[1769387333869,0.00014129,86861.0,86853.0,0.00115831]
[1769387334074,0.00014129,86861.0,86853.0,0.01267201]
[1769387334216,0.00014129,86861.0,86854.0,0.01151357]
[1769387334421,0.00014129,86861.0,86853.0,0.00115831]
[1769387335056,1.38915315,86861.0,86854.0,0.00119613]
[1769387335256,0.28109246,86860.0,86850.0,0.00119613]
[1769387335661,1.1079194,86859.0,86850.0,0.01271023]
[1769387335878,1.1079194,86859.0,86851.0,0.01151397]
[1769387336112,1.1079194,86859.0,86850.0,0.01271023]
[1769387336443,1.1079194,86859.0,86851.0,0.01151397]
[1769387336694,0.28109246,86860.0,86850.0,0.00119613]
[1769387337129,0.28109246,86860.0,86718.0,0.0006742]
[1769387337130,0.00119613,86850.0,86840.0,0.01151543]
[1769387337335,0.17684,86850.0,86844.0,0.0115149]
[1769387337556,0.17684,86850.0,86843.0,0.01151503]
[1769387337751,0.17684,86850.0,86846.0,0.01151463]
[1769387337881,0.17684,86850.0,86844.0,0.0115149]
[1769387338086,0.17684,86850.0,86846.0,0.01151463]
[1769387338342,0.17684,86850.0,86847.0,0.0115145]
[1769387338544,0.17684,86850.0,86846.0,0.01151463]
[1769387338955,0.17684,86850.0,86847.0,0.0115145]
[1769387340372,0.17684,86850.0,86846.0,0.01151463]
[1769387341321,0.17684,86850.0,86844.0,0.0115149]
[1769387341516,0.17684,86850.0,86845.0,0.01151476]
[1769387341768,0.17684,86850.0,86846.0,0.01151463]
[1769387341960,0.17684,86850.0,86847.0,0.0115145]
[1769387342135,0.17684,86850.0,86846.0,0.01151463]
[1769387342527,0.17684,86850.0,86847.0,0.0115145]
[1769387342738,0.17684,86855.0,86850.0,0.0115141]
[1769387342952,0.17684,86855.0,86851.0,0.01151397]
[1769387343191,0.17684,86855.0,86850.0,0.0115141]
[1769387343667,0.17684,86855.0,86851.0,0.01151397]
[1769387343870,0.17684,86855.0,86849.0,0.01151423]
[1769387344043,0.17684,86855.0,86841.0,0.28653417]
[1769387344253,0.17684,86855.0,86845.0,0.01151476]
[1769387344555,0.17684,86855.0,86843.0,0.01151503]
[1769387344741,0.17684,86855.0,86842.0,0.01151516]
[1769387344888,0.17684,86855.0,86843.0,0.01151503]
[1769387345662,0.17684,86855.0,86845.0,0.01151476]
[1769387345977,0.17684,86855.0,86844.0,0.0115149]
[1769387346999,0.17684,86855.0,86845.0,0.01151476]
[1769387347204,0.17684,86855.0,86843.0,0.01151503]
[1769387347405,0.17684,86855.0,86845.0,0.01151476]
[1769387347901,0.17684,86855.0,86846.0,0.01151463]
[1769387348131,0.17684,86855.0,86847.0,0.0115145]
[1769387348327,0.17684,86855.0,86850.0,0.0115141]
[1769387348530,0.17684,86855.0,86851.0,0.01220544]
[1769387348730,0.17684,86855.0,86852.0,0.01151383]
[1769387348955,0.17684,86855.0,86853.0,0.00069145]
[1769387349157,0.17684,86862.0,86854.0,0.01151357]
[1769387349307,0.17684,86862.0,86853.0,0.00069145]
[1769387350133,0.17684,86862.0,86854.0,0.00069145]
[1769387350360,0.17684,86862.0,86854.0,0.00083274]
[1769387350553,0.17684,86862.0,86856.0,0.0115133]
[1769387350849,0.17684,86862.0,86858.0,0.01151304]
[1769387351035,0.04604,86872.0,86863.0,0.01151238]
[1769387351455,0.04604,86872.0,86864.0,0.01053473]
[1769387351661,0.04604,86872.0,86865.0,0.01151211]
[1769387351878,0.04604,86872.0,86864.0,0.01053473]
[1769387351996,0.04604,86872.0,86865.0,0.01151211]
[1769387352213,0.04604,86872.0,86860.0,0.01151277]
[1769387352454,0.04604,86872.0,86858.0,0.01151304]
[1769387352628,1.18312792,86872.0,86858.0,0.01151304]
[1769387353004,0.27956622,86869.0,86855.0,0.01151344]
[1769387353176,1.41665414,86868.0,86856.0,0.0115133]
[1769387353615,1.41665414,86868.0,86857.0,0.01151317]
[1769387353830,0.27956622,86868.0,86860.0,0.06151277]
[1769387354017,0.04604,86872.0,86861.0,0.0121264]
[1769387354196,0.04604,86872.0,86862.0,0.01151251]
[1769387355400,1.13708792,86871.0,86858.0,0.28311987]
[1769387355583,1.13708792,86871.0,86857.0,0.01151317]
[1769387355781,1.13708792,86871.0,86858.0,0.01151304]
[1769387356007,1.13708792,86871.0,86857.0,0.01151317]
[1769387356167,0.93201594,86871.0,86857.0,0.01151317]
[1769387356380,0.93201594,86871.0,86856.0,0.0115133]
[1769387356621,0.30422315,86870.0,86854.0,0.00014129]
[1769387356826,1.46451292,86868.0,86854.0,0.00014129]
[1769387357067,0.30422315,86867.0,86854.0,0.00014129]
[1769387357409,1.46451292,86867.0,86854.0,0.00014129]
[1769387358225,1.16028977,86866.0,86854.0,0.00014129]
[1769387359039,1.16028977,86863.0,86854.0,0.00014129]
[1769387359381,1.46451292,86853.0,86841.0,0.01151529]
[1769387359583,0.17684,86852.0,86839.0,0.01151556]
[1769387359782,1.16028977,86851.0,86836.0,0.01151596]
[1769387360057,1.16028977,86851.0,86837.0,0.01151582]
[1769387360355,0.48106315,86852.0,86837.0,0.01151582]
[1769387360562,0.48106315,86852.0,86838.0,0.01151569]
[1769387361012,0.48106315,86852.0,86836.0,0.01151596]
[1769387361240,0.48106315,86852.0,86837.0,0.01151582]
[1769387361466,0.48106315,86852.0,86839.0,0.01151556]
[1769387362616,0.48106315,86852.0,86841.0,0.01151529]
[1769387362813,0.48106315,86852.0,86842.0,0.01151516]
[1769387363152,0.48106315,86852.0,86841.0,0.01151529]
[1769387363613,0.48106315,86852.0,86842.0,0.01151516]
[1769387363842,0.17684,86852.0,86844.0,0.0115149]
[1769387364148,0.17684,86852.0,86846.0,0.05]
[1769387364351,0.17684,86852.0,86847.0,0.0115145]
[1769387364591,0.17684,86852.0,86849.0,0.01151423]
[1769387364943,0.00014116,86853.0,86850.0,0.0115141]
[1769387365304,0.17684,86859.0,86850.0,0.0115141]
[1769387365305,0.17684,86859.0,86853.0,7.058e-05]
[1769387365493,0.17684,86859.0,86851.0,1.08188785]
[1769387365700,0.17684,86859.0,86851.0,0.01151397]
[1769387366109,0.17684,86859.0,86849.0,0.01151423]
[1769387366444,0.17684,86859.0,86846.0,1.12037388]
[1769387366445,0.48106315,86859.0,86846.0,0.05]
[1769387366649,1.16028977,86858.0,86846.0,0.06151463]
[1769387366843,0.48106315,86859.0,86848.0,0.01151436]
[1769387367170,0.48106315,86859.0,86850.0,0.0115141]
[1769387367418,0.48106315,86859.0,86848.0,0.01151436]
[1769387367626,0.48106315,86859.0,86849.0,0.01151423]
[1769387368037,0.48106315,86859.0,86850.0,0.0115141]
[1769387368479,0.48106315,86859.0,86849.0,0.01151423]
[1769387368665,0.48106315,86859.0,86850.0,0.0115141]
[1769387368869,0.48106315,86859.0,86852.0,0.01151383]
[1769387369078,0.17684,86859.0,86852.0,0.31291128]
[1769387369308,0.17684,86859.0,86853.0,0.0115137]
[1769387369712,0.17684,86859.0,86854.0,0.01151357]
[1769387369943,0.17684,86859.0,86855.0,0.01151344]
[1769387370155,0.17684,86859.0,86856.0,0.0115133]
[1769387370365,0.04604,86872.0,86858.0,0.01151304]
[1769387370569,0.22288,86872.0,86859.0,0.01151291]
[1769387370778,0.22288,86872.0,86860.0,0.01151277]
[1769387371201,1.16028977,86871.0,86859.0,0.01151291]
[1769387371623,0.32313107,86870.0,86851.0,0.01151397]
[1769387371823,1.16028977,86867.0,86854.0,0.01151357]
[1769387372004,1.16028977,86867.0,86857.0,0.01151317]
[1769387372203,0.30478235,86869.0,86860.0,0.01151277]
[1769387372655,0.0005592,86869.0,86861.0,0.01151264]
[1769387372829,0.0005592,86869.0,86863.0,0.01151238]
[1769387373054,0.0005592,86869.0,86861.0,0.01151264]
[1769387373679,0.0005592,86869.0,86862.0,0.01151251]
[1769387373826,0.0005592,86869.0,86863.0,0.01151238]
[1769387374038,0.0005592,86869.0,86864.0,0.01151224]
[1769387374561,0.0005592,86869.0,86860.0,0.01151277]
[1769387374783,1.10810823,86864.0,86848.0,0.01151436]
[1769387375011,1.39241347,86864.0,86851.0,0.01151397]
[1769387375235,1.39267067,86864.0,86852.0,0.01151383]
[1769387375586,1.39267067,86864.0,86850.0,0.17684]
[1769387375789,1.39267067,86864.0,86851.0,0.01151397]
[1769387375988,1.39267067,86864.0,86850.0,0.17684]
[1769387376265,1.39267067,86864.0,86850.0,0.1883541]
[1769387376821,1.39267067,86864.0,86850.0,0.17684]
[1769387377061,1.39267067,86864.0,86850.0,0.1883541]
[1769387377269,1.39267067,86864.0,86851.0,0.01151397]
[1769387377474,1.39267067,86864.0,86852.0,0.01151383]